[Event "FIDE World Rapid-ch Open 2018"]
[White "Ahmed Hassan Abdillahi"]
[Black "Huzman, Alexander"]
[Site "St. Petersburg"]
[Round "1.101"]
[Annotator "ChessBase"]
[Result "0-1"]
[Date "2018.12.26"]
[WhiteElo "1570"]
[BlackElo "2580"]
[PlyCount "80"]
[TimeControl "900+10"]

1. d4 {[%emt 0:0:0]} Nf6 {[%emt 0:0:0]} 2. c4 {[%emt 0:0:0]} g6 {[%emt 0:0:0]} 3. Nf3 {[%emt 0:0:0]} Bg7 {[%emt 0:0:5]} 4. Nc3 {[%emt 0:0:7]} d5 {[%emt 0:0:4]} 5. e3 {[%emt 0:0:16]} 0-0 {[%emt 0:0:14]} 6. Be2 {[%emt 0:0:0]} c5 {[%emt 0:0:33]} 7. 0-0 {[%emt 0:0:36]} cxd4 {[%emt 0:0:19]} 8. exd4 {[%emt 0:0:15]} Nc6 {[%emt 0:0:9]} 9. Be3 {[%emt 0:0:18]} dxc4 {[%emt 0:1:13]
} 10. Bxc4 {[%emt 0:0:19]} Na5 {[%emt 0:0:4]} 11. Be2 {[%emt 0:0:13]
} Be6 {[%emt 0:0:3]} 12. b3 {[%emt 0:0:20]} Rc8 {[%emt 0:0:0]} 13. Rc1 {[%emt 0:0:22]} Nd5 {[%emt 0:0:27]} 14. Ne4 {[%emt 0:0:32]} Bf5 {[%emt 0:1:6]} 15. Ng3 {[%emt 0:0:58]} Nc3 {[%emt 0:0:42]} 16. Rxc3 {[%emt 0:0:13]
} Rxc3 {[%emt 0:0:2]} 17. Nxf5 {[%emt 0:0:17]} gxf5 {[%emt 0:0:0]} 18. Ne5 {[%emt 0:0:59]} Bxe5 {[%emt 0:0:27]} 19. dxe5 {[%emt 0:0:8]
} Qxd1 {[%emt 0:0:3]} 20. Bxd1 {[%emt 0:0:11]} Nc6 {[%emt 0:0:9]} 21. Bh6 {[%emt 0:0:27]} Rd8 {[%emt 0:0:7]} 22. f4 {[%emt 0:0:9]} Rc1 {[%emt 0:0:0]} 23. Bf3 {[%emt 0:0:16]} Rxf1+ {[%emt 0:0:3]} 24. Kxf1 {[%emt 0:0:2]} Rd2 {[%emt 0:0:5]} 25. a4 {[%emt 0:0:13]} Rb2 {[%emt 0:0:9]} 26. Bd5 {[%emt 0:0:10]
} e6 {[%emt 0:0:1]} 27. Bc4 {[%emt 0:0:11]} Na5 {[%emt 0:0:0]} 28. g4 {[%emt 0:0:12]} Nxc4 {[%emt 0:0:6]} 29. bxc4 {[%emt 0:0:1]} fxg4 {[%emt 0:0:3]} 30. Bg5 {[%emt 0:0:10]} Rxh2 {[%emt 0:0:4]} 31. Be7 {[%emt 0:0:21]
} h5 {[%emt 0:0:3]} 32. a5 {[%emt 0:0:5]} a6 {[%emt 0:0:3]} 33. Kg1 {[%emt 0:0:9]} Rc2 {[%emt 0:0:2]} 34. c5 {[%emt 0:0:2]} Kh7 {[%emt 0:0:1]
} 35. Kh1 {[%emt 0:0:19]} Kg6 {[%emt 0:0:2]} 36. Kg1 {[%emt 0:0:0]} Kf5 {[%emt 0:0:1]} 37. Bd6 {[%emt 0:0:14]} g3 {[%emt 0:0:2]} 38. Kh1 {[%emt 0:0:5]} h4 {[%emt 0:0:2]} 39. Be7 {[%emt 0:0:7]} h3 {[%emt 0:0:0]} 40. Bd6 {[%emt 0:0:20]} Rc1# {[%emt 0:0:2]} 0-1

[Event "FIDE World Rapid-ch Open 2018"]
[White "Predke, Alexandr"]
[Black "Al Turky, Fahad A"]
[Site "St. Petersburg"]
[Round "1.102"]
[Annotator "ChessBase"]
[Result "1-0"]
[Date "2018.12.26"]
[WhiteElo "2622"]
[BlackElo "1836"]
[PlyCount "80"]
[TimeControl "900+10"]

1. e4 {[%emt 0:0:0]} e6 {[%emt 0:1:2]} 2. d4 {[%emt 0:0:0]} d5 {[%emt 0:0:0]} 3. e5 {[%emt 0:0:0]} c5 {[%emt 0:0:2]} 4. c3 {[%emt 0:0:0]} Nc6 {[%emt 0:0:1]
} 5. Nf3 {[%emt 0:0:1]} Qb6 {[%emt 0:0:26]} 6. Na3 {[%emt 0:0:0]} Bd7 {[%emt 0:1:24]} 7. Nc2 {[%emt 0:0:10]} cxd4 {[%emt 0:0:27]} 8. cxd4 {[%emt 0:0:40]} f6 {[%emt 0:2:33]} 9. Bd3 {[%emt 0:0:32]} Nb4 {[%emt 0:0:0]} 10. Nxb4 {[%emt 0:0:5]} Bxb4+ {[%emt 0:0:4]} 11. Bd2 {[%emt 0:0:0]} fxe5 {[%emt 0:2:29]} 12. Nxe5 {[%emt 0:0:48]} Nf6 {[%emt 0:3:21]} 13. Bxb4 {[%emt 0:0:57]} Qxb4+ {[%emt 0:0:4]} 14. Qd2 {[%emt 0:0:2]} Qxd2+ {[%emt 0:0:28]
} 15. Kxd2 {[%emt 0:0:2]} Rc8 {[%emt 0:0:42]} 16. Rhe1 {[%emt 0:0:11]
} Ke7 {[%emt 0:1:30]} 17. Re3 {[%emt 0:0:20]} a6 {[%emt 0:0:0]} 18. Rae1 {[%emt 0:0:18]} Rhe8 {[%emt 0:0:6]} 19. g4 {[%emt 0:0:20]} h6 {[%emt 0:0:3]} 20. h4 {[%emt 0:0:4]} Rc7 {[%emt 0:0:15]} 21. f3 {[%emt 0:0:0]} Kd6 {[%emt 0:0:8]} 22. Bg6 {[%emt 0:0:43]} Re7 {[%emt 0:0:11]} 23. Nf7+ {[%emt 0:0:26]} Kc6 {[%emt 0:0:18]} 24. Rc1+ {[%emt 0:0:8]} Kb6 {[%emt 0:0:2]
} 25. Rb3+ {[%emt 0:0:3]} Bb5 {[%emt 0:0:3]} 26. a4 {[%emt 0:0:0]} Rxf7 {[%emt 0:0:12]} 27. Bxf7 {[%emt 0:0:2]} Rxf7 {[%emt 0:0:1]} 28. axb5 {[%emt 0:0:2]} axb5 {[%emt 0:0:18]} 29. Rc5 {[%emt 0:0:3]} Ne8 {[%emt 0:0:22]
} 30. Rcxb5+ {[%emt 0:0:12]} Ka7 {[%emt 0:0:8]} 31. Ra3+ {[%emt 0:0:9]
} Kb8 {[%emt 0:0:3]} 32. Rb6 {[%emt 0:0:1]} Re7 {[%emt 0:0:0]} 33. Rab3 {[%emt 0:0:30]} Kc8 {[%emt 0:0:15]} 34. g5 {[%emt 0:0:20]} hxg5 {[%emt 0:0:2]} 35. hxg5 {[%emt 0:0:3]} g6 {[%emt 0:0:6]} 36. Ke3 {[%emt 0:0:27]
} Ng7 {[%emt 0:0:3]} 37. Kf4 {[%emt 0:0:7]} Nf5 {[%emt 0:0:0]} 38. Ke5 {[%emt 0:0:4]} Kb8 {[%emt 0:0:20]} 39. R3b4 {[%emt 0:0:21]} Nh4 {[%emt 0:0:12]} 40. f4 {[%emt 0:0:15]} Nf5 {[%emt 0:0:21] Ke4} 1-0

[Event "FIDE World Rapid-ch Open 2018"]
[White "Alsulaymi, Abdullah M"]
[Black "Levin, Evgeny A."]
[Site "St. Petersburg"]
[Round "1.103"]
[Annotator "ChessBase"]
[Result "0-1"]
[Date "2018.12.26"]
[WhiteElo "1833"]
[BlackElo "2516"]
[PlyCount "64"]
[TimeControl "900+10"]

1. e4 {[%emt 0:0:0]} c5 {[%emt 0:0:0]} 2. b4 {[%emt 0:1:32]} b6 {[%emt 0:0:0]} 3. bxc5 {[%emt 0:0:13]} bxc5 {[%emt 0:0:2]} 4. Nf3 {[%emt 0:0:22]} Nc6 {[%emt 0:0:15]} 5. Bc4 {[%emt 0:0:15]} e6 {[%emt 0:0:52]} 6. Nc3 {[%emt 0:0:21]
} Nf6 {[%emt 0:0:19]} 7. d3 {[%emt 0:1:30]} Be7 {[%emt 0:0:30]
} 8. 0-0 {[%emt 0:0:14]} 0-0 {[%emt 0:0:5]} 9. Bf4 {[%emt 0:2:42]} d6 {[%emt 0:0:51]
} 10. Rb1 {[%emt 0:1:0]} Nd7 {[%emt 0:1:6]} 11. Ne2 {[%emt 0:0:0]} Nb6 {[%emt 0:0:38]} 12. Bb5 {[%emt 0:0:44]} Bb7 {[%emt 0:0:54]} 13. Ng3 {[%emt 0:0:6]} a6 {[%emt 0:0:48]} 14. Bxc6 {[%emt 0:0:55]} Bxc6 {[%emt 0:0:2]
} 15. d4 {[%emt 0:1:18]} Na4 {[%emt 0:3:15]} 16. Qd2 {[%emt 0:0:0]} Bb5 {[%emt 0:0:56]} 17. Rfd1 {[%emt 0:0:11]} cxd4 {[%emt 0:0:24]} 18. Nxd4 {[%emt 0:0:3]} e5 {[%emt 0:0:28]} 19. Nxb5 {[%emt 0:0:2]} exf4 {[%emt 0:0:14]
} 20. Nf5 {[%emt 0:0:30]} axb5 {[%emt 0:0:7]} 21. Rxb5 {[%emt 0:0:15]
} Bf6 {[%emt 0:0:19]} 22. Rb7 {[%emt 0:0:20]} Nc5 {[%emt 0:0:0]} 23. Rb4 {[%emt 0:0:21]} Rxa2 {[%emt 0:0:15]} 24. Qxf4 {[%emt 0:0:5]} Rxc2 {[%emt 0:0:44]} 25. Rxd6 {[%emt 0:0:4]} Qxd6 {[%emt 0:1:36]} 26. Nxd6 {[%emt 0:0:2]} Nd3 {[%emt 0:0:1]} 27. Qe3 {[%emt 0:1:15]} Rc1+ {[%emt 0:0:0]} 28. Qxc1 {[%emt 0:0:1]} Nxc1 {[%emt 0:0:2]} 29. g3 {[%emt 0:0:25]} Be7 {[%emt 0:0:55]} 30. Rb6 {[%emt 0:0:2]} g6 {[%emt 0:0:16]} 31. f4 {[%emt 0:0:10]
} Rd8 {[%emt 0:0:6]} 32. Nc4 Bf6 0-1